Cogmind - Beta 16 @@@ ROGUE MODE // 2025.11.20 @ 01:25:03 // Winter2019/RPGLIKE Player: daniels1231 Result: Self-destructed Performance ------------- Evolutions (5) 2500 Regions Visited (9) 1800 Robots Destroyed (82) 410 Value Destroyed (3298) 3298 Prototype IDs (1) 20 Alien Tech Used (0) 0 Bonus (2028) 2028 TOTAL SCORE: 10056 Bonus ------- High Alert Combat Kills 128 Entered Garrisons 400 Used RIF Installer 1000 Entered DSFs 500 Cogmind --------- Core Integrity 70/1900 Matter 135/300 Energy 266/350 System Corruption 8% Temperature Warning (341) Movement Flying (37) Location -5/Factory Parts ------- > --- POWER (1) -------- Micro Fission Core > --- PROPULSION (4) --- Nuclear Pulse Array Nuclear Pulse Array > --- UTILITY (2) ------ (None) > --- WEAPON (4) ------- Proton Missile Launcher > --- INVENTORY (3) ---- Cesium-ion Thruster Thermal Shield Grenade Launcher Peak State ------------ > --- POWER ------------ (None) > --- PROPULSION ------- Nuclear Pulse Array Nuclear Pulse Array > --- UTILITY ---------- Improved Heavy Armor Plating > --- WEAPON ----------- Heavy EM Shotgun Proton Missile Launcher Proton Missile Launcher Proton Missile Launcher > --- INVENTORY -------- Cesium-ion Thruster Thermal Shield Grenade Launcher [Rating: 50] Favorites ----------- Power Light Fission Core Engine Light Ion Engine Power Core Light Fission Core Propulsion Cesium-ion Thruster Wheel Wheel Hover Unit Hover Unit Flight Unit Cesium-ion Thruster Utility Improved Heavy Armor Plating Storage Compact Matter Pod Processor Signal Interpreter Protection Improved Heavy Armor Plating Weapon Proton Missile Launcher Energy Gun Heavy EM Shotgun Ballistic Gun Minigun Launcher Proton Missile Launcher Impact Weapon Hammer Build | -11 -10 -9 -8 -8 -7 -7 -6 -6 -5 ------- Run | Yrd Mat Mat Mat Gar Fac DSF Fac Gar Fac Slots Evolved 7 | 2 . 3 1 1 . . . . . Power . | . . . . . . . . . . Propulsion 3 | 1 . . 1 1 . . . . . Utility 1 | . . 1 . . . . . . . Weapon 3 | 1 . 2 . . . . . . . Parts Attached 47 | 5 3 9 2 9 . 13 1 2 3 Power 6 | 1 . . 1 1 . . 1 1 1 Engine 2 | 1 . . 1 . . . . . . Core 4 | . . . . 1 . . 1 1 1 Reactor . | . . . . . . . . . . Propulsion 23 | 2 . 2 1 7 . 8 . 1 2 Treads . | . . . . . . . . . . Leg . | . . . . . . . . . . Wheel 2 | 2 . . . . . . . . . Hover 3 | . . 2 1 . . . . . . Flight 18 | . . . . 7 . 8 . 1 2 Utility 4 | . 1 1 . . . 2 . . . Device . | . . . . . . . . . . Storage 1 | . . 1 . . . . . . . Processor 1 | . 1 . . . . . . . . Hackware . | . . . . . . . . . . Protection 2 | . . . . . . 2 . . . Artifact . | . . . . . . . . . . Weapon 14 | 2 2 6 . 1 . 3 . . . Energy Gun 4 | 2 . 2 . . . . . . . Energy Cannon . | . . . . . . . . . . Ballistic Gun 4 | . . 4 . . . . . . . Ballistic Cannon . | . . . . . . . . . . Launcher 4 | . . . . 1 . 3 . . . Special Weapon . | . . . . . . . . . . Impact Weapon 2 | . 2 . . . . . . . . Slashing Weapon . | . . . . . . . . . . Piercing Weapon . | . . . . . . . . . . Special Melee Weapon . | . . . . . . . . . . Unidentified Prototypes 1 | . . 1 . . . . . . . Corrupted Parts 1 | . . . . . . . . 1 . System Corruption 10 | . . . . . . . . 10 . Parts Lost 7 | . . . . . . . . 2 5 Power 2 | . . . . . . . . 1 1 Propulsion 1 | . . . . . . . . 1 . Utility 1 | . . . . . . . . . 1 Weapon 3 | . . . . . . . . . 3 Highest Loss Streak 3 | . . . . . . . . 1 3 To Critical Strikes . | . . . . . . . . . . Average Backups 2 | . . 1 2 1 2 2 2 2 2 Power . | . . . . . . . . . . Propulsion . | . . . . . 1 1 . . . Utility . | . . . . . . . . 1 1 Weapon 1 | . . 1 2 1 1 1 1 1 1 Tool/Special . | . . . . . . . . . . Unused Backups 1 | . . . . . . . . . 1 Power . | . . . . . . . . . . Propulsion . | . . . . . . . . . . Utility 1 | . . . . . . . . . 1 Weapon . | . . . . . . . . . . Tool/Special . | . . . . . . . . . . Average Slot Usage (%) 87 | . 92 98 99 91 81 86 90 87 68 Engine 2 | . 16 13 10 3 . . . . . Core 6 | . . . . 5 9 9 9 8 4 Wheel 1 | . 33 3 . . . . . . . Hover 4 | . . 23 28 9 . . . . . Flight 25 | . . . . 22 27 31 36 33 22 Storage 2 | . . 5 10 9 9 2 . . . Processor 2 | . 11 13 10 3 . . . . . Protection 5 | . . . . . . 8 9 9 5 Energy Gun 7 | . 20 . . 6 9 9 9 9 9 Ballistic Gun 9 | . . 32 40 30 27 8 . . . Launcher 17 | . . . . . . 18 27 27 26 Peak Build Rating 50 | 5 6 19 23 28 28 41 43 43 50 Average Rating 34 | 3 5 14 22 23 28 37 42 42 41 On Entrance 23 | . 5 6 19 23 28 28 41 43 40 Avg Prop Armor Cover (%) 1 | . . . . . . . 1 1 . Naked Turns . | . . . . . . . . . . Heaviest Build 47 | 7 7 16 22 23 19 45 47 47 47 Greatest Support 26 | 26 26 26 19 19 9 24 20 20 26 Greatest Overweight (x) 8 | . . 2 1 6 2 8 3 3 3 Average Overweight (x) 1 | . . . . 1 2 2 2 2 1 Largest Inventory Capacity 3 | . 1 2 2 2 2 2 3 3 3 Average Capacity 2 | . . 1 2 2 2 2 2 3 3 Most Carried 3 | . 1 2 2 2 2 2 3 2 3 Average Carried 2 | . . 1 2 1 2 2 2 2 2 Final Capacity 3 | . 1 2 2 2 2 2 3 3 3 Final Carried 3 | . 1 2 2 2 2 2 2 2 3 Class Distribution -------------------- 30% | Bomber 26% | Tank 17% | Skirmisher 8% | Scavenger-Skirmisher 6% | Gunner 4% | Mutant Dominant Class ---------------- Mutant | -10/Materials Gunner | -9/Materials Skirmisher | -8/Materials Scavenger-Skirmisher | -8/Garrison Scavenger-Skirmisher | -7/Factory Skirmisher | -7/DSF Tank | -6/Factory Bomber | -6/Garrison Bomber | -5/Factory Resources | -11 -10 -9 -8 -8 -7 -7 -6 -6 -5 ----------- Run | Yrd Mat Mat Mat Gar Fac DSF Fac Gar Fac Matter Collected 2304 | 250 30 510 144 435 . 182 30 589 134 Remotely . | . . . . . . . . . . Salvage Created 3760 | . 36 129 150 385 . 879 404 1011 766 Parts 224 | . 6 24 9 44 . 19 21 71 30 Haulers Intercepted 1 | . . 1 . . . . . . . Recyclers Shooed 2 | . . . . . . . . . 2 Parts Field Recycled . | . . . . . . . . . . Retrieved Matter . | . . . . . . . . . . Parts Self-Destructed . | . . . . . . . . . . Prevented . | . . . . . . . . . . Parts Restored . | . . . . . . . . . . Kills | -11 -10 -9 -8 -8 -7 -7 -6 -6 -5 ------- Run | Yrd Mat Mat Mat Gar Fac DSF Fac Gar Fac Combat Hostiles Destroyed 70 | . 2 6 3 16 . 8 3 20 12 Melee 2 | . 2 . . . . . . . . Guns 25 | . . 6 3 14 . 1 . 1 . AOE 35 | . . . . 2 . 7 2 14 10 Classes Destroyed 17 | . 2 5 . 2 . 1 4 3 . Worker 1 | . . 1 . . . . . . . Builder 3 | . . . . . . . 2 . 1 Tunneler 1 | . 1 . . . . . . . . Hauler 1 | . . 1 . . . . . . . Recycler 2 | . . . . . . . 1 . 1 Operator 2 | . . . . . . . 1 . 1 Watcher 2 | . . 2 . . . . . . . Swarmer 18 | . 2 . . 8 . 3 . . 5 Cutter 5 | . . . . 2 . . . 3 . Grunt 23 | . . 4 2 3 . . . 10 4 Brawler 1 | . . . . . . . . 1 . Duelist 1 | . . . . . . . . 1 . Sentry 6 | . . 2 1 . . . . 2 1 Specialist 4 | . . . . . . 4 . . . Hunter 10 | . . . . 3 . 1 2 2 2 Programmer 1 | . . . . . . . 1 . . Behemoth 1 | . . . . . . . . 1 . Best Kill Streak 10 | . 2 6 2 10 . 4 4 6 5 Combat Bots Only 10 | . 2 2 2 10 . 4 2 6 5 Max Kills in Single Turn 5 | . 1 1 1 3 . 2 2 3 5 Gunslinging 1 | . . . . 1 . . . . . Exploded 5 | . . . . 2 . 2 1 3 5 Melee 1 | . 1 . . . . . . . . Uniques/NPCs Destroyed . | . . . . . . . . . . Combat | -11 -10 -9 -8 -8 -7 -7 -6 -6 -5 -------- Run | Yrd Mat Mat Mat Gar Fac DSF Fac Gar Fac Hostile Shots Fired 451 | . 76 17 15 61 . 80 16 78 108 Missed 160 | . 21 5 3 18 . 32 4 30 47 Hits 291 | . 55 12 12 43 . 48 12 48 61 Melee 4 | . . . . 2 . . . 2 . Projectile 287 | . 55 12 12 41 . 48 12 46 61 AOE 4 | . . . . 1 . . . 1 2 Critical Strikes 9 | . . . 1 . . . . 2 6 Part Disruptions 2 | . . . . . . . 1 . 1 Damage Taken 4826 | . 515 174 228 546 . 884 212 781 1486 Core 3474 | . 433 145 184 438 . 616 134 429 1095 Absorbed by Shields . | . . . . . . . . . . Redirected to Core 2811 | . 249 102 151 358 . 483 104 400 964 Ignored by Resistances 260 | . . . . . . . . 71 189 Core Remaining (%) 46 | 100 27 50 . 34 . 17 . 50 . Volleys Fired 125 | . 2 21 11 25 . 12 7 25 22 Largest 4 | . 2 4 4 4 . 4 4 4 4 Hottest 167 | . 80 100 100 125 . 167 167 167 167 Shots Fired 396 | . 4 66 42 81 . 42 23 77 61 Gun 237 | . 4 66 42 81 . 18 1 15 10 Cannon . | . . . . . . . . . . Launcher 159 | . . . . . . 24 22 62 51 Special . | . . . . . . . . . . Kinetic 179 | . . 65 42 64 . 8 . . . Thermal . | . . . . . . . . . . Explosive . | . . . . . . . . . . Electromagnetic 217 | . 4 1 . 17 . 34 23 77 61 Robot Hit Streak 12 | . 1 5 7 7 . 6 4 8 12 Robot Miss Streak 5 | . 1 5 3 5 . 5 3 4 3 Penetration Max . | . . . . . . . . . . Secondary Targets 8 | . . 1 1 6 . . . . . Max Gunslinging Chain 1 | . . 1 1 1 . . . . . Shots Hit Robots 221 | . 7 34 22 46 . 19 12 42 39 Core Hits 167 | . 3 13 7 28 . 12 15 45 44 Critical Kills 1 | . . 1 . . . . . . . Critical Parts Destroyed . | . . . . . . . . . . Critical Strikes 1 | . . 1 . . . . . . . Destroy 1 | . . 1 . . . . . . . Melee Attacks 10 | . 10 . . . . . . . . Impact 10 | . 10 . . . . . . . . Slashing . | . . . . . . . . . . Piercing . | . . . . . . . . . . Sneak Attacks . | . . . . . . . . . . Combat Hostiles . | . . . . . . . . . . Follow-up Attacks 2 | . 2 . . . . . . . . Damage Inflicted 7239 | . 204 591 365 934 . 617 545 2119 1864 Guns 2201 | . 33 591 365 776 . 141 15 109 171 Cannons . | . . . . . . . . . . Explosions 4867 | . . . . 158 . 476 530 2010 1693 Melee 171 | . 171 . . . . . . . . Ramming . | . . . . . . . . . . Kinetic 1589 | . . 591 365 550 . 83 . . . Thermal 792 | . . . . 158 . . 112 45 477 Explosive . | . . . . . . . . . . Electromagnetic 4687 | . 33 . . 226 . 534 433 2074 1387 Impact 171 | . 171 . . . . . . . . Slashing . | . . . . . . . . . . Piercing . | . . . . . . . . . . Highest Corruption 15 | . . . . . . 1 5 15 8 Average Corruption 10 | . . . . . . 1 3 12 5 Corruption Purged . | . . . . . . . . . . Corruption Blocked . | . . . . . . . . . . Effects 78 | . . . . . . 1 9 66 2 Message Errors 15 | . . . . . . . 6 9 . Matter Fused 18 | . . . . . . . 1 16 1 Heat Flow Errors 8 | . . . . . . . . 8 . Energy Discharges 15 | . . . . . . 1 . 14 . Parts Rejected 1 | . . . . . . . . . 1 Data Loss (minor) 6 | . . . . . . . . 6 . Data Loss (major) 6 | . . . . . . . 1 5 . Misfires 5 | . . . . . . . 1 4 . Alerts 3 | . . . . . . . . 3 . Weapon Failures 1 | . . . . . . . . 1 . Overload Shots . | . . . . . . . . . . Overflow Damage 63 | . 16 . . . . 19 11 . 17 Projectiles . | . . . . . . . . . . Explosions 47 | . . . . . . 19 11 . 17 Melee 16 | . 16 . . . . . . . . Knockbacks 1 | . 1 . . . . . . . . Impact 1 | . 1 . . . . . . . . Kinetic . | . . . . . . . . . . Secondary . | . . . . . . . . . . Self-Inflicted Damage 402 | . . . . 11 . 97 7 119 168 Shots 22 | . . . . 1 . 6 2 6 7 Rammed . | . . . . . . . . . . Targets Rammed . | . . . . . . . . . . Kicked . | . . . . . . . . . . Crushed . | . . . . . . . . . . Highest Temperature 524 | . 36 299 488 513 . 96 351 524 386 Average Temperature 152 | . 20 118 230 172 . 31 120 159 163 Received Heat Transfer 657 | . 135 69 117 36 . 18 . 222 60 Effects 35 | . . . 7 6 . . 2 18 2 Shutdowns 8 | . . . 1 1 . . 1 5 . Energy Bleed 9 | . . . 2 2 . . 1 3 1 Interference 7 | . . . . 1 . . . 5 1 Matter Decay 3 | . . . . 1 . . . 2 . Short Circuit 3 | . . . 1 1 . . . 1 . Damage (minor) 2 | . . . . . . . . 2 . Damage (major) 3 | . . . 3 . . . . . . Siege Activations . | . . . . . . . . . . Martial Activations . | . . . . . . . . . . Shielding Activations . | . . . . . . . . . . Robots Disrupted . | . . . . . . . . . . Combat Hostiles . | . . . . . . . . . . Robots Corrupted 8 | . . . . . . . 1 5 2 Combat Hostiles 8 | . . . . . . . 1 5 2 Parts Fried 36 | . . . . 1 . 5 6 16 8 Impact Corruptions 1 | . 1 . . . . . . . . Robots Melted . | . . . . . . . . . . Combat Hostiles . | . . . . . . . . . . Parts Melted . | . . . . . . . . . . Heat Transferred 650 | . . . . 200 . . 100 . 350 Parts Sabotaged . | . . . . . . . . . . Parts Stolen . | . . . . . . . . . . Parts Stripped . | . . . . . . . . . . Power Chain Reactions 17 | . . . . 1 . 2 4 3 7 Alert | -11 -10 -9 -8 -8 -7 -7 -6 -6 -5 ------- Run | Yrd Mat Mat Mat Gar Fac DSF Fac Gar Fac Maximum Alert Level 2 | . . . . 1 1 1 1 2 2 Low Security (%) 47 | 100 100 100 100 28 4 56 97 22 . Level 1 28 | . . . . 71 95 43 2 15 74 Level 2 23 | . . . . . . . . 61 25 Level 3 . | . . . . . . . . . . Level 4 . | . . . . . . . . . . Level 5 . | . . . . . . . . . . High Security . | . . . . . . . . . . Max Security . | . . . . . . . . . . Sterilizations 1 | . . . . . . 1 . . . Peak Influence 668 | . 65 76 54 382 200 393 205 668 602 Initial 350 | . . 27 7 35 200 133 205 4 350 Average 255 | . 7 35 7 223 199 229 91 414 384 Influence Increases 2235 | . 70 176 84 347 . 260 120 684 494 Destroy 0b10 Robot/C 1330 | . 40 120 60 320 . 160 60 390 180 Destroy 0b10 Robot/NC 57 | . 5 20 . . . . 20 . 12 Destroy Leader 216 | . 10 36 20 20 . 30 20 40 40 Successful Hack 4 | . . . 4 . . . . . . Disable Machine 117 | . . . . . . 30 15 . 72 Anti-Garrison Action 113 | . . . . . . . . 113 . Destroy Structure 233 | . . . . 7 . 10 5 81 130 Lose Combat Pursuer 165 | . 15 . . . . 30 . 60 60 Influence Decreases 1687 | . 5 223 48 19 192 57 506 23 614 Entered New Map 816 | . . 38 11 19 182 57 188 3 318 Time Decay 801 | . 5 185 37 . 10 . 318 . 246 Lost Part 70 | . . . . . . . . 20 50 Squads Dispatched 10 | . . 1 1 . . 1 2 . 5 Investigation . | . . . . . . . . . . Extermination 2 | . . . . . . . 1 . 1 Reinforcement 7 | . . 1 . . . 1 1 . 4 Assault . | . . . . . . . . . . Garrison 1 | . . . 1 . . . . . . Intercept . | . . . . . . . . . . Searches Triggered . | . . . . . . . . . . Construction Impeded 1 | . . . . . . . 1 . . Haulers Reinforced 1 | . . . . . . . . . 1 Active Scanning Responses . | . . . . . . . . . . Cargo Convoy Interrupts . | . . . . . . . . . . Stealth | -11 -10 -9 -8 -8 -7 -7 -6 -6 -5 --------- Run | Yrd Mat Mat Mat Gar Fac DSF Fac Gar Fac Distress Signals 1 | . 1 . . . . . . . . Communications Jammed . | . . . . . . . . . . Distress Signals . | . . . . . . . . . . Times Spotted 93 | . 10 9 4 16 . 11 2 19 22 Peak Tracking Total 10 | . 8 3 2 10 . 4 1 5 6 Tactical Retreats 9 | . 1 . . . . 2 . 3 3 Traps | -11 -10 -9 -8 -8 -7 -7 -6 -6 -5 ------- Run | Yrd Mat Mat Mat Gar Fac DSF Fac Gar Fac Traps Triggered 8 | . . . 1 2 . 1 1 3 . Indirectly 1 | . . . . . . . . 1 . Trap Hack Attempts . | . . . . . . . . . . Triggered . | . . . . . . . . . . Disarmed . | . . . . . . . . . . Reprogrammed . | . . . . . . . . . . Reused . | . . . . . . . . . . Traps Extracted . | . . . . . . . . . . Installed . | . . . . . . . . . . Triggered . | . . . . . . . . . . Machines | -11 -10 -9 -8 -8 -7 -7 -6 -6 -5 ---------- Run | Yrd Mat Mat Mat Gar Fac DSF Fac Gar Fac Machines Disabled 11 | . . . . . . 2 1 2 6 Max in Single Turn 4 | . . . . . . 1 1 2 4 Garrison Relay 1 | . . . . . . . . 1 . Machines Repaired . | . . . . . . . . . . Machines Dismantled . | . . . . . . . . . . Machines Sabotaged . | . . . . . . . . . . Overloaded Fab Kills . | . . . . . . . . . . Hacking | -11 -10 -9 -8 -8 -7 -7 -6 -6 -5 --------- Run | Yrd Mat Mat Mat Gar Fac DSF Fac Gar Fac Machines Accessed 4 | . . . 1 . 1 . 1 1 . Terminals 2 | . . . . . 1 . . 1 . Fabricators . | . . . . . . . . . . Repair Stations . | . . . . . . . . . . Recycling Units . | . . . . . . . . . . Scanalyzers . | . . . . . . . . . . Garrison Access 2 | . . . 1 . . . 1 . . Total Hacks 6 | . . . 2 . 2 . 1 1 . Successful 3 | . . . 1 . 1 . 1 . . Failed 3 | . . . 1 . 1 . . 1 . Catastrophic . | . . . . . . . . . . Database Lockouts . | . . . . . . . . . . Manual 1 | . . . . . . . . 1 . Terminals 3 | . . . . . 2 . . 1 . Fabricators . | . . . . . . . . . . Repair Stations . | . . . . . . . . . . Recycling Units . | . . . . . . . . . . Scanalyzers . | . . . . . . . . . . Garrison Access 3 | . . . 2 . . . 1 . . Terminal Hacks 1 | . . . . . 1 . . . . Open DSF 1 | . . . . . 1 . . . . Fabricator Hacks . | . . . . . . . . . . Repair Station Hacks . | . . . . . . . . . . Recycling Unit Hacks . | . . . . . . . . . . Scanalyzer . | . . . . . . . . . . Garrison Access Hacks 2 | . . . 1 . . . 1 . . Unlock Access 2 | . . . 1 . . . 1 . . Unauthorized Hacks . | . . . . . . . . . . Terminals . | . . . . . . . . . . Fabricators . | . . . . . . . . . . Repair Stations . | . . . . . . . . . . Recycling Units . | . . . . . . . . . . Scanalyzers . | . . . . . . . . . . Garrison Access . | . . . . . . . . . . Data Cores Recovered . | . . . . . . . . . . Used . | . . . . . . . . . . Hacking Detections 2 | . . . 1 . 1 . . . . Full Trace Events . | . . . . . . . . . . Feedback Events . | . . . . . . . . . . Feedback Blocked . | . . . . . . . . . . Robot Schematics Acquired . | . . . . . . . . . . Robots Built . | . . . . . . . . . . Authchips . | . . . . . . . . . . Time . | . . . . . . . . . . Total Robot Build Rating . | . . . . . . . . . . Part Schematics Acquired . | . . . . . . . . . . Parts Built . | . . . . . . . . . . Authchips . | . . . . . . . . . . Time . | . . . . . . . . . . Total Part Build Rating . | . . . . . . . . . . Part Studies Acquired . | . . . . . . . . . . Parts Repaired . | . . . . . . . . . . Time . | . . . . . . . . . . Parts Recycled . | . . . . . . . . . . Recycled Matter . | . . . . . . . . . . Retrieved Matter . | . . . . . . . . . . Retrieved Components . | . . . . . . . . . . Parts Scanalyzed . | . . . . . . . . . . Part Schematics Acquired . | . . . . . . . . . . Parts Damaged . | . . . . . . . . . . Bothacking | -11 -10 -9 -8 -8 -7 -7 -6 -6 -5 ------------ Run | Yrd Mat Mat Mat Gar Fac DSF Fac Gar Fac Used RIF Installer 2 | . . . . 1 . . . 1 . Threat Obfuscator 1 | . . . . . . . . 1 . Robots Hacked . | . . . . . . . . . . Non-combat . | . . . . . . . . . . Combat . | . . . . . . . . . . Robot Hacks Applied . | . . . . . . . . . . Relay Couplers Released 2 | . . . . . . . . 2 . Machine Destruction 2 | . . . . . . . . 2 . Fabnet Peak Effective % . | . . . . . . . . . . Robots Rewired . | . . . . . . . . . . Allies Hacked . | . . . . . . . . . . Hacks Repelled . | . . . . . . . . . . Allies | -11 -10 -9 -8 -8 -7 -7 -6 -6 -5 -------- Run | Yrd Mat Mat Mat Gar Fac DSF Fac Gar Fac Total Allies . | . . . . . . . . . . Largest Group . | . . . . . . . . . . Highest-Rated Group . | . . . . . . . . . . Highest-Rated Ally . | . . . . . . . . . . Total Orders . | . . . . . . . . . . Ally Attacks . | . . . . . . . . . . Total Damage . | . . . . . . . . . . Kills . | . . . . . . . . . . Allies Corrupted . | . . . . . . . . . . Allies Melted . | . . . . . . . . . . Intel | -11 -10 -9 -8 -8 -7 -7 -6 -6 -5 ------- Run | Yrd Mat Mat Mat Gar Fac DSF Fac Gar Fac Active Infowar (turns) . | . . . . . . . . . . Robot Analysis Total . | . . . . . . . . . . Derelict Logs Recovered . | . . . . . . . . . . Drone Launches . | . . . . . . . . . . Drone Recoveries . | . . . . . . . . . . Exploration | -11 -10 -9 -8 -8 -7 -7 -6 -6 -5 ------------- Run | Yrd Mat Mat Mat Gar Fac DSF Fac Gar Fac Turns Passed 4657 | 56 118 414 168 704 21 327 714 1600 535 Spaces Moved 2676 | 57 92 367 84 496 20 139 334 749 338 Core 10 | 3 . 1 . 1 . 5 . . . Treads . | . . . . . . . . . . Legs . | . . . . . . . . . . Wheels 181 | 54 92 35 . . . . . . . Hover 556 | . . 331 84 141 . . . . . Flight 1929 | . . . . 354 20 134 334 749 338 Fastest Speed 26 | 50 90 56 52 31 109 26 106 106 37 Average Speed 145 | 85 90 89 108 112 109 177 202 187 127 Slowest Speed 450 | 90 90 150 116 440 109 450 269 269 227 Overloaded Moves . | . . . . . . . . . . Propulsion Burnouts . | . . . . . . . . . . Robots Hopped . | . . . . . . . . . . Potential Cave-ins 2 | . . . . . . . . . 2 Cave-ins Triggered . | . . . . . . . . . . Exploration Rate (%) 26 | 4 27 30 10 39 . 58 10 48 12 Regions Visited 9 Branch Regions . Pre-discovered Areas . | . . . . . . . . . . Known Exits Taken 5 | . 1 1 1 . 1 . 1 . . Unknown Exits Taken 1 | 1 . . . . . . . . . Scrap Searched . | . . . . . . . . . . Spaces Dug . | . . . . . . . . . . Terrain Destroyed 97 | . . . . 2 . 10 5 14 66 Melee . | . . . . . . . . . . Projectile . | . . . . . . . . . . AOE 97 | . . . . 2 . 10 5 14 66 Terrain Rammed . | . . . . . . . . . . Walls Destroyed . | . . . . . . . . . . Machines Disabled . | . . . . . . . . . . Actions | -11 -10 -9 -8 -8 -7 -7 -6 -6 -5 --------- Run | Yrd Mat Mat Mat Gar Fac DSF Fac Gar Fac Total 3151 | 61 107 417 141 597 19 188 354 881 386 Wait 119 | . . . 38 16 . . . 49 16 Move 2665 | 56 91 366 83 494 19 138 333 747 338 Hop . | . . . . . . . . . . Pick Up 4 | . 1 1 . . . . 2 . . Fast Attach 49 | 5 3 9 2 10 . 13 1 2 4 Attach 2 | . . 1 . 1 . . . . . Detach 7 | . . 1 . 4 . . 1 . 1 Swap . | . . . . . . . . . . Drop 37 | . 2 6 1 10 . 12 3 1 2 Fire 125 | . 2 21 11 25 . 12 7 25 22 Melee 8 | . 8 . . . . . . . . Ram . | . . . . . . . . . . Kick . | . . . . . . . . . . Crush . | . . . . . . . . . . Escape Stasis 60 | . . . . 30 . . . 30 . Rewire . | . . . . . . . . . . Trap . | . . . . . . . . . . Miscellaneous 75 | . . 12 6 7 . 13 7 27 3 Route ------- -11/Scrapyard -10/Materials -9/Materials -8/Materials -8/Garrison (discovered 2 exits: *Fac x2) -7/Factory -7/DSF -6/Factory -6/Garrison -5/Factory History --------- Turn | Location | Event 11 | -11/Scrapyard | Discovered new exit (range 15) 16 | -11/Scrapyard | Upgraded with Propulsion slot (x1) 16 | -11/Scrapyard | Upgraded with Weapon slot (x1) 57 | -11/Scrapyard | Entered Materials 125 | -10/Materials | Discovered new exit (range 15) 156 | -10/Materials | Core integrity fell below 50% 171 | -10/Materials | Identified exit to Materials 175 | -10/Materials | Entered another Materials area 176 | -9/Materials | Core integrity fell below 50% 177 | -9/Materials | Reached level 2 332 | -9/Materials | Upgraded with Weapon slot (x1) 345 | -9/Materials | Upgraded with Weapon slot (x1) 357 | -9/Materials | Upgraded with Utility slot (x1) 565 | -9/Materials | Discovered new exit (range 16) 588 | -9/Materials | Identified exit to Materials 589 | -9/Materials | Entered another Materials area 591 | -8/Materials | Reached level 3 599 | -8/Materials | Upgraded with Propulsion slot (x1) 635 | -8/Materials | Build established: Gunner 677 | -8/Materials | Core integrity fell below 50% 732 | -8/Materials | Garrison activated, responded to threat 756 | -8/Materials | Identified exit to Garrison 757 | -8/Materials | Entered Garrison 757 | -8/Garrison | Reached level 4 827 | -8/Garrison | Triggered checkpoint 950 | -8/Garrison | Build established: Skirmisher 962 | -8/Garrison | Reached level 5 983 | -8/Garrison | Destroyed 10 combat bots 992 | -8/Garrison | Upgraded with Propulsion slot (x1) 1051 | -8/Garrison | Triggered checkpoint 1069 | -8/Garrison | Triggered checkpoint 1119 | -8/Garrison | Discovered new exit (range 17) 1157 | -8/Garrison | Triggered checkpoint 1225 | -8/Garrison | Installed Relay Interface Framework 1435 | -8/Garrison | Build established: Scavenger-Skirmisher 1440 | -8/Garrison | Discovered new exit (range 13) 1461 | -8/Garrison | Entered Factory 1462 | -7/Factory | Core integrity fell below 50% 1463 | -7/Factory | Reached level 6 1481 | -7/Factory | Identified exit to DSF 1482 | -7/Factory | Entered DSF 1484 | -7/DSF | Reached level 7 1584 | -7/DSF | Additional patrols routed to DSF 1635 | -7/DSF | Discovered new exit (range 19) 1648 | -7/DSF | Core integrity fell below 20% 1763 | -7/DSF | Reached level 8 1798 | -7/DSF | Build established: Skirmisher 1808 | -7/DSF | Sterilization system engaged 1809 | -7/DSF | Entered Factory 1810 | -6/Factory | Core integrity fell below 50% 1810 | -6/Factory | Core integrity fell below 20% 1811 | -6/Factory | Reached level 9 2115 | -6/Factory | Build established: Tank 2503 | -6/Factory | Identified exit to Garrison 2523 | -6/Factory | Entered Garrison 2728 | -6/Garrison | Spotted B-75 Beast 2741 | -6/Garrison | Triggered checkpoint 2829 | -6/Garrison | Reached level 10 2852 | -6/Garrison | System corruption reached 10% 2869 | -6/Garrison | Triggered checkpoint 2870 | -6/Garrison | Destroyed B-75 Beast 2995 | -6/Garrison | Triggered checkpoint 3134 | -6/Garrison | Discovered new exit (range 12) 3142 | -6/Garrison | Reached level 11 3342 | -6/Garrison | Build established: Bomber 3479 | -6/Garrison | Expanded RIF knowledge: Threat Obfuscation 3651 | -6/Garrison | Triggered checkpoint 4123 | -6/Garrison | Entered Factory 4125 | -5/Factory | Reached level 12 4214 | -5/Factory | Core integrity fell below 50% 4493 | -5/Factory | Reached level 13 4605 | -5/Factory | Core integrity fell below 20% 4658 | -5/Factory | Self-destructed Last Messages --------------- 04645_ R-10 Processor collects Corrupted KE Penetrator. 04647_ U-05 Engineer lays Concrete. 04648_ K-01 Serf collects debris. 04649_ System corrupted: Matter fused (-10). 04649_ Proton Missile Launcher destroyed. 04649_ U-05 Engineer lays Concrete. 04651_ K-01 Serf collects debris. 04653_ U-05 Engineer lays Concrete. 04653_ P-70 Sage resets P-70 Sage, system corruption cleaned. 04654_ U-05 Engineer lays Concrete. 04655_ Hvy. EM Shotgun destroyed. 04655_ U-05 Engineer lays Concrete. 04656_ Overheating: System interference. 04656_ Proton Missile Launcher temporarily disabled. 04657_ K-01 Serf collects debris. 04658_ U-05 Engineer builds a Door. [Achievement: 10k Club] Map ----- +----------------------------------------------------+ | #???# "" """ #???"" """???????????????? | | #???# """ #????" """???????????????? | | #???# """ #??????""????????????????? | | ##### """" =[#????????????????????????? | | %=%#????????????????????????? | | """"""" """"" % #????????????????????????? | | """"""" """"" % #??????????????? ???????? | | """"""" """" % #??????????????? ???????? | | """"""" """"" #?????????????? ????????? | | ###??????????##/###??????? | | +????###### #??????? | | ########+######### k ####????/ ##?????? | | ?????????????????# #???????#% ?????? | | ?????????????????# #???????# ???????? | | ??????????????#### #########p ????????? | | ??????????????#;;;;#+# # p = /?????????? | | ?????????????## # =% =???????????? | | ?????????????## # R [!#????????????? | | ?????????????## # #????????????? | | ?????????????#; #????????????? | | ?????????????# #????????????? | | ?????????????# #????????????? | | ??????#### ###;k #????????????? | | ???? /u # #????????????? | | ???????#######; # #????????????? | | ?????????????## @ # #????????????? | | ??????????????# #########????????????? | | ??????????????# = ##????????????????????? | | ??????????????##############?????????????????????? | | | | | | | | | | | | | | | | | | | | | | | | | | | | | | | | | | | | | | | | | | | +----------------------------------------------------+ Best States ------------- Heat Dissipation 25 Energy Generation 33 Energy Capacity 360 Matter Stores 450 Matter Capacity 450 Sight Range 20 Robot Scan Range 14 Terrain Scan Density 10 Armor Coverage 600 Resistance: KI 20 Resistance: TH 20 Evasion (%) 64 Item Schematics ----------------- None Robot Schematics ------------------ None Fabricated ------------ Nothing Repaired ---------- Nothing Studied --------- None Alien Tech Used ----------------- None Achievements -------------- 10k Club Join The Dark Side Let Me Out Of Here My Business Is Booming Window Shopping You Will Be Upgraded Challenges ------------ None RPGLIKE | -11 -10 -9 -8 -8 -7 -7 -6 -6 -5 --------- Run | Yrd Mat Mat Mat Gar Fac DSF Fac Gar Fac Levels Raised 12 | . . 1 1 2 1 2 1 2 2 XP Earned 21989 | 3000 250 2250 1900 2550 1500 2350 1975 3226 2988 XP Spent 20875 | 1000 250 2900 1675 3085 . 3040 2725 800 5400 Upgrades 65 | 2 1 4 8 12 . 11 10 4 13 Propulsion Slot 3 | 1 . . 1 1 . . . . . Utility Slot 1 | . . 1 . . . . . . . Weapon Slot 3 | 1 . 2 . . . . . . . Core Integrity 26 | . . . . 7 . 4 5 4 6 Energy Generation 3 | . . . . . . 3 . . . Energy Storage 4 | . . . . . . 4 . . . Inventory Capacity 3 | . 1 1 . . . . 1 . . Sight Range 4 | . . . . 4 . . . . . Sensor Range 7 | . . . 7 . . . . . . Ranged Accuracy 3 | . . . . . . . . . 3 KI Resistance % 4 | . . . . . . . 3 . 1 TH Resistance % 4 | . . . . . . . 1 . 3 Protomatter Created 1172 | . 7 263 45 125 . 158 50 440 84 Integrity Restored 1644 | . . 282 135 165 . 285 150 576 51 Core 1644 | . . 282 135 165 . 285 150 576 51 Protomatter Decayed 393 | . . 128 . . . 47 . 201 17 Game ------ Seed RefineryCryofiberHammer Manual? 0 Play Time 00:43:04 Cumulative 14.3 hours Start 2025.11.20 @ 00:44:59 End 2025.11.20 @ 01:25:03 Sessions 1 Manual Loads 0 Difficulty Rogue Special Mode Winter2019/RPGLIKE Game No. 34 Rogue 30 Adventurer 4 Explorer 0 Win Type - Total 0 Types 0/0/0/0/0/0/0/0/0/0 Lore% 4 Gallery% 17 Achievement% 15 Wizard Run 0 Options --------- Layout 2 ASCII 0 Keyboard 0 Movement Arrows Keybinds 1 Fullscreen 2 Font 32/SmallcapsGlow Map View 50x44 Zoom Use 0% Tactical HUD 1 Map Filters NONE Filters NONE Steam 1 RUN: cdcd41ee-218b-47c3-bbe4-34a06eb9389b